bitfinex-derivatives/quotes_ETHF0:USTF0_20241018
["timestamp","ask_amount","ask_price","bid_price","bid_amount"]
[1729266784404,4.5602,2661.5,2660.9,2.7776]
[1729266784405,0.37579,2661.2,2660.9,2.7776]
[1729266784709,0.37579,2661.2,2661.1,0.3758]
[1729266785014,0.37576,2661.4,2661.3,0.37576]
[1729266785198,4.5602,2661.5,2661.3,0.37576]
[1729266785393,4.5602,2661.5,2661.0,0.93954]
[1729266785394,3.2078,2661.5,2661.4,0.37576]
[1729266786290,0.37577,2661.4,2661.0,2.19684]
[1729266786496,3.2078,2661.5,2661.2,0.37578]
[1729266786497,0.37578,2661.3,2661.2,0.37578]
[1729266786704,3.2078,2661.5,2661.3,0.37576]
[1729266786705,0.37577,2661.4,2661.3,0.37576]
[1729266786893,3.2078,2661.5,2661.0,1.2573]
[1729266787098,3.58355,2661.5,2661.4,0.37576]
[1729266787704,3.2078,2661.5,2661.0,2.19683]
[1729266787922,0.37576,2661.4,2661.3,0.37576]
[1729266788512,3.2078,2661.5,2661.0,1.2573]
[1729266788808,0.37577,2661.4,2661.3,0.37576]
[1729266789003,3.2078,2661.5,2661.0,2.19683]
[1729266789198,3.2078,2661.8,2661.4,0.37576]
[1729266789503,3.2078,2661.8,2661.7,0.3757]
[1729266790098,3.5835,2661.8,2661.7,0.37571]
[1729266790702,3.5835,2661.8,2661.6,0.37572]
[1729266790703,0.37572,2661.7,2661.6,0.37572]
[1729266791011,0.37573,2661.7,2661.6,0.37572]
[1729266791514,3.2078,2661.8,2661.5,2.6929]
[1729266791515,3.58351,2661.8,2661.7,0.37571]
[1729266791811,3.2078,2661.8,2661.5,2.6929]
[1729266792008,3.58351,2661.8,2661.7,0.37571]
[1729266792308,0.37573,2661.7,2661.6,0.37572]
[1729266793214,0.37574,2661.6,2661.5,0.37573]
[1729266793418,3.2078,2661.8,2661.4,0.9394]
[1729266793709,3.2078,2661.8,2661.7,0.37571]
[1729266796010,3.2078,2661.8,2661.5,2.7639]
[1729266796214,0.37575,2661.6,2661.5,0.37573]
[1729266796407,4.5452,2661.8,2661.3,0.32113219]
[1729266796606,5.48447,2661.8,2661.2,1.322]
[1729266796802,0.37575,2661.5,2661.4,0.37574]
[1729266797213,0.37574,2661.6,2661.5,0.37572]
[1729266797808,4.5452,2661.8,2661.2,1.64375096]
[1729266798008,0.93929,2661.7,2661.2,0.32175096]
[1729266798207,5.8982,2661.8,2661.5,0.37573]
[1729266798208,0.37574,2661.6,2661.5,0.37573]
[1729266798403,0.37576,2661.5,2661.4,0.37574]
[1729266798614,6.83746,2661.8,2661.2,0.37576]
[1729266798615,0.37578,2661.3,2661.2,0.37576]
[1729266800307,6.83748,2661.8,2661.1,6.34144674]
[1729266800509,4.5452,2661.8,2661.7,0.37571]
[1729266800716,3.2078,2661.8,2661.7,0.37571]
[1729266800903,0.37566,2662.1,2662.0,0.37567]
[1729266802308,3.2078,2662.2,2661.8,4.54925]
[1729266802508,3.2078,2662.2,2662.1,0.37566]
[1729266802509,3.58345,2662.2,2662.1,0.37566]
[1729266803020,3.58345,2662.2,2661.8,4.54925]
[1729266803021,0.37569,2662.0,2661.9,0.37568]
[1729266803210,0.3757,2661.9,2661.8,0.37569]
[1729266803713,0.3757,2661.9,2661.7,0.3757]
[1729266803714,0.37571,2661.8,2661.7,0.3757]
[1729266806421,0.93926,2661.8,2661.2,3.69405]
[1729266806619,0.37577,2661.5,2661.4,0.37574]
[1729266807419,0.37577,2661.5,2661.2,3.69405]
[1729266807420,0.37577,2661.4,2661.3,0.37575]
[1729266807619,0.93933,2661.6,2661.2,0.37578]
[1729266807620,0.37577,2661.3,2661.2,0.37578]
[1729266807822,4.14713,2661.6,2661.3,0.37576]
[1729266807823,0.37578,2661.4,2661.3,0.37576]
[1729266808007,4.14713,2661.6,2661.0,3.61]
[1729266808213,0.3758,2661.3,2661.2,0.37578]
[1729266808917,3.5836,2661.3,2661.2,0.37578]
[1729266809626,4.18864209,2661.8,2661.2,6.9654]
[1729266809928,0.37573,2661.7,2661.6,0.37571]
[1729266810121,3.58351,2661.8,2661.7,0.37571]
[1729266810620,0.37573,2661.7,2661.6,0.37572]
[1729266811620,3.2078,2661.8,2661.3,2.7504]
[1729266811826,0.37574,2661.6,2661.5,0.37573]
[1729266813119,4.6422,2661.8,2661.3,1.364]
[1729266813120,5.58146,2661.8,2661.3,1.364]
[1729266813321,0.9393,2661.7,2661.2,3.61]
[1729266813531,0.37578,2661.3,2661.0,4.9732]
[1729266813824,0.37579,2661.2,2661.1,0.37578]
[1729266814017,3.2078,2661.4,2661.3,0.37577]
[1729266814018,0.37576,2661.4,2661.3,0.37577]
[1729266814213,4.1471,2661.7,2661.3,3.61]
[1729266814214,4.18864209,2661.7,2661.3,3.61]
[1729266814412,0.37574,2661.6,2661.5,0.37573]
[1729266816621,4.56436209,2661.7,2661.6,0.37573]
[1729266816829,3.2078,2661.7,2661.6,0.37573]
[1729266817022,3.58351,2661.7,2661.6,0.37573]
[1729266817421,4.56435209,2661.7,2661.6,0.37573]
[1729266817627,3.58351,2661.7,2661.6,0.37573]
[1729266817828,4.56435209,2661.7,2661.6,0.37573]
[1729266818020,0.37575,2661.6,2661.5,0.37573]
[1729266818328,2.01460591,2661.6,2661.5,0.37573]
[1729266818721,1.82663537,2661.6,2661.5,0.37573]
[1729266819025,2.01460499,2661.6,2661.5,0.37573]
[1729266819527,1.63885499,2661.6,2661.3,5.32131342]
[1729266819721,0.37576,2661.5,2661.4,0.37575]
[1729266819917,1.45088537,2661.6,2661.3,0.32091342]
[1729266820126,1.35879673,2661.4,2661.3,0.69667342]
[1729266820424,1.35879673,2661.4,2661.3,0.37576]
[1729266820425,1.82664537,2661.4,2661.3,0.37576]
[1729266820631,2.01461898,2661.4,2661.3,0.37576]
[1729266820824,0.37578,2661.3,2661.2,0.37577]
[1729266821015,1.82666537,2661.3,2661.2,0.37577]
[1729266821221,2.01464945,2661.3,2661.2,0.37577]
[1729266821821,2.01464945,2661.3,2660.9,2.29737]
[1729266821822,0.3758,2661.1,2660.9,0.37582]
[1729266822023,2.03939311,2661.0,2660.9,0.37582]
[1729266822227,0.56381171,2661.0,2660.9,0.37582]
[1729266822635,2.03972312,2661.0,2660.9,0.37582]
[1729266822823,2.03972312,2661.0,2660.9,0.37583]
[1729266823327,0.56381557,2661.0,2660.9,0.37583]
[1729266823521,0.37581,2661.0,2660.9,0.37583]
[1729266823721,0.56381557,2661.0,2660.9,0.37583]
[1729266824322,1.85180313,2661.0,2660.9,0.37583]
[1729266824532,2.03989727,2661.0,2660.9,0.37583]
[1729266824926,2.03989488,2661.0,2660.9,0.37583]
[1729266825425,0.56381318,2661.0,2660.9,0.37583]
[1729266825728,1.85168444,2661.0,2660.9,0.37583]
[1729266825929,2.03968762,2661.0,2660.9,3.30583]
[1729266826830,2.03968762,2661.0,2660.9,0.37583]
[1729266827030,0.56381318,2661.0,2660.9,0.37583]
[1729266827422,1.85152432,2661.0,2660.9,0.37583]
[1729266827623,2.03952282,2661.0,2660.9,0.37583]
[1729266827922,1.85152432,2661.0,2660.9,0.37583]
[1729266828729,0.37581,2661.0,2660.9,0.37583]
[1729266828930,1.85152432,2661.0,2660.9,0.37583]
[1729266829126,0.37583,2660.9,2660.8,0.70524577]
[1729266829333,1.35961918,2660.9,2660.8,0.37583]
[1729266831133,0.98378918,2660.9,2660.8,0.37583]
[1729266831630,1.35961918,2660.9,2660.8,0.37583]
[1729266834732,0.98378918,2660.9,2660.8,0.37583]
[1729266835229,0.98378918,2661.0,2660.9,0.37583]
[1729266835432,0.98378918,2661.0,2660.9,3.30583]
[1729266836233,1.35959918,2661.0,2660.9,3.30583]
[1729266836734,1.35915977,2661.0,2660.9,3.30583]
[1729266836954,0.37581,2661.0,2660.9,3.30583]
[1729266837137,1.85152432,2661.0,2660.9,3.30583]
[1729266837335,1.35914891,2661.0,2660.9,0.37583]
[1729266837735,0.37581,2661.0,2660.9,0.37583]
[1729266838539,0.37581,2661.0,2660.7,4.18809064]
[1729266838540,0.37584,2660.9,2660.8,0.37583]
[1729266838737,1.47571432,2661.0,2660.7,3.24845064]
[1729266838738,1.35918648,2661.0,2660.7,3.24845064]
[1729266838938,0.37582,2661.0,2660.9,0.37583]
[1729266840132,1.35914341,2661.0,2660.9,0.37583]
[1729266840331,1.85153432,2661.0,2660.9,0.37583]
[1729266840536,0.37584,2660.9,2660.8,0.37583]
[1729266840838,1.3592625,2660.9,2660.8,0.37583]
[1729266841432,3.37897579,2660.9,2660.8,0.37583]
[1729266841736,2.69869402,2660.9,2660.8,0.37583]
[1729266842442,2.69869402,2660.9,2660.7,0.31845064]
[1729266842443,1.3394,2660.9,2660.7,0.31845064]
[1729266842645,1.3394,2660.9,2660.4,0.37588]
[1729266842646,0.3759,2660.5,2660.4,0.37588]
[1729266842836,1.35940858,2660.5,2660.4,0.37588]
[1729266843033,0.98350858,2660.5,2660.4,3.30588]
[1729266843339,1.93451383,2660.8,2660.4,2.93]
[1729266843340,1.35936858,2660.7,2660.4,2.93]
[1729266843540,1.35936858,2660.7,2660.6,0.37587]
[1729266843739,0.98350858,2660.7,2660.6,0.37587]
[1729266844039,5.05891288,2660.7,2660.6,0.37587]
[1729266844849,5.05891288,2660.7,2660.4,0.33411352]
[1729266844850,4.68306288,2660.7,2660.4,0.33411352]
[1729266845041,1.3591523,2660.5,2660.4,0.71000352]
[1729266845242,0.37588,2660.5,2660.4,0.37589]
[1729266845438,0.37591,2660.4,2660.3,0.3759]
[1729266845638,1.35908288,2660.4,2660.3,0.3759]
[1729266845939,0.98317288,2660.4,2660.3,0.3759]
[1729266846146,0.98317288,2660.4,2660.1,0.93985]
[1729266846348,1.35905288,2660.5,2660.4,0.3759]
[1729266848136,0.98317288,2660.5,2660.4,0.3759]
[1729266848344,1.81367,2660.6,2660.5,0.37588]
[1729266849244,1.4378,2660.6,2660.5,0.37588]
[1729266849452,4.19097288,2660.7,2660.6,0.37587]
[1729266849453,0.98317288,2660.7,2660.6,0.37587]
[1729266849639,0.98317288,2660.8,2660.7,0.37585]
[1729266849838,1.35900288,2660.9,2660.8,0.37584]
[1729266850036,0.98317288,2660.9,2660.8,0.37584]
[1729266851751,1.35900288,2660.9,2660.8,0.37584]
[1729266851951,0.98317288,2660.9,2660.8,0.37584]
[1729266852147,0.98317288,2660.9,2660.8,3.30584]
[1729266852354,5.24044229,2661.3,2660.8,7.02115764]
[1729266852355,0.98317288,2661.2,2660.8,7.02115764]
[1729266852649,0.98317288,2661.2,2661.1,0.3758]
[1729266852650,1.35895288,2661.2,2661.1,0.3758]
[1729266852848,0.37582,2661.0,2660.9,0.37581]
[1729266853053,1.35896288,2661.2,2661.1,0.3758]
[1729266853356,0.98317288,2661.3,2661.2,0.37578]
[1729266853653,1.35894288,2661.3,2661.2,0.37578]
[1729266853950,1.85103288,2661.3,2661.2,0.37578]
[1729266854747,1.47526288,2661.3,2661.2,0.37578]
[1729266855255,0.9833197,2661.3,2661.2,0.37578]
[1729266855645,0.9833197,2661.3,2661.2,3.10068]
[1729266856949,0.9833197,2661.3,2661.2,0.32963264]
[1729266857151,1.3591097,2661.3,2661.2,0.70540264]
[1729266857351,0.37582,2661.1,2661.0,0.3758]
[1729266857946,1.85108288,2661.1,2661.0,0.3758]
[1729266858542,1.47526288,2661.2,2661.1,0.3758]
[1729266858946,0.98370194,2661.2,2661.1,4.1334]
[1729266859248,1.47526288,2661.3,2661.2,0.37578]
[1729266859249,0.98370194,2661.3,2661.2,0.37578]
[1729266859444,0.98370194,2661.4,2661.3,0.37577]
[1729266860456,1.47526288,2661.4,2661.3,0.37577]
[1729266860955,3.65545383,2661.6,2661.4,0.37576]
[1729266860956,1.47526288,2661.5,2661.4,0.37576]
[1729266861258,1.66323773,2661.5,2661.4,0.37576]
[1729266861754,2.03897773,2661.5,2661.4,0.37576]
[1729266862052,2.03897773,2661.5,2661.2,0.37577]
[1729266862053,0.37578,2661.3,2661.2,0.37577]
[1729266862247,1.85123159,2661.3,2661.2,0.37577]
[1729266862447,0.37581,2661.1,2661.0,0.3758]
[1729266862748,1.35956232,2661.1,2661.0,0.3758]
[1729266862952,0.37581,2661.1,2661.0,0.3758]
[1729266863653,0.37583,2661.0,2660.9,0.37581]
[1729266863858,2.75975176,2661.0,2660.9,0.37581]
[1729266864043,2.38392176,2661.0,2660.9,0.37581]
[1729266864243,1.4,2661.0,2660.9,0.37581]
[1729266865252,1.77581,2661.0,2660.9,0.37581]
[1729266865654,3.25126159,2661.0,2660.9,0.37581]
[1729266866857,2.87545159,2661.0,2660.9,0.37581]
[1729266867353,0.98422725,2661.0,2660.9,2.93]
[1729266867555,0.98422725,2661.0,2660.9,3.30583]
[1729266868852,1.36003725,2661.0,2660.9,0.37583]
[1729266869152,1.47545159,2661.1,2660.8,3.52834593]
[1729266869358,1.85128159,2660.9,2660.8,3.52834593]
[1729266869545,1.85128159,2660.9,2660.8,3.90418593]
[1729266869749,1.85128159,2660.9,2660.4,4.54244]
[1729266869750,5.42185963,2660.9,2660.6,0.37586]
[1729266869949,1.85236593,2660.7,2660.6,0.37586]
[1729266870858,2.04039647,2660.7,2660.6,0.37586]
[1729266871356,2.04038884,2660.7,2660.6,0.37586]
[1729266871653,1.85236593,2660.7,2660.6,0.37586]
[1729266871855,2.04039642,2660.7,2660.6,0.37586]
[1729266872045,0.37585,2660.7,2660.6,0.37586]
[1729266872243,1.36011141,2660.7,2660.6,0.37586]
[1729266872457,1.47651593,2660.7,2660.6,0.37587]
[1729266872954,1.47651593,2660.8,2660.7,0.37585]
[1729266873160,0.98425129,2660.8,2660.7,3.30585]
[1729266873354,1.36009129,2660.8,2660.7,0.37585]
[1729266873558,0.98425129,2660.8,2660.7,0.37585]
[1729266873860,0.37588,2660.6,2660.5,0.37586]
[1729266874159,2.75393963,2660.7,2660.6,0.37587]
[1729266874352,2.75392466,2660.7,2660.6,0.37587]
[1729266874549,0.37588,2660.5,2660.4,3.36029773]
[1729266874758,0.93975,2660.4,2660.0,0.95698253]
[1729266874959,0.98440484,2660.1,2660.0,0.37595]
[1729266875256,1.85253727,2660.2,2660.1,0.37594]
[1729266875257,1.85257104,2660.2,2660.1,0.37594]
[1729266875452,0.37595,2660.1,2660.0,0.37594]
[1729266875657,1.85218047,2660.1,2660.0,0.37594]
[1729266875962,1.47623047,2660.1,2660.0,0.37594]
[1729266876162,0.98419688,2660.1,2660.0,0.37594]
[1729266876961,0.98419688,2660.2,2659.9,2.93]
[1729266877257,0.98419688,2660.2,2660.1,0.37594]
[1729266878762,0.60428947,2660.3,2660.1,6.6892]
[1729266879059,1.93451383,2660.6,2660.5,0.37588]
[1729266879060,1.85210047,2660.6,2660.5,0.37588]
[1729266879255,1.3938,2660.7,2660.3,0.93979]
[1729266879256,3.24589047,2660.7,2660.3,0.93979]
[1729266879458,3.24589047,2660.7,2660.6,0.37587]
[1729266879658,3.43392733,2660.7,2660.6,0.37587]
[1729266879864,3.43278769,2660.7,2660.6,0.37587]
[1729266880561,1.47509083,2660.7,2660.6,3.30587]
[1729266880765,4.68289083,2660.8,2660.5,0.37587]
[1729266881061,0.37588,2660.6,2660.5,0.37587]
[1729266881264,1.47509083,2660.7,2660.6,0.37587]
[1729266881453,1.47509083,2660.7,2660.4,0.93975]
[1729266881454,4.68289083,2660.8,2660.5,2.93]
[1729266881654,4.68289083,2660.8,2660.7,0.37585]
[1729266881655,3.2078,2660.8,2660.7,0.37585]
[1729266885467,3.2078,2660.8,2660.7,1.67745]
[1729266885665,3.2078,2660.8,2660.7,4.60745]
[1729266886054,3.2078,2660.8,2660.7,4.93233347]
[1729266886256,4.68289083,2661.1,2661.0,0.37581]
[1729266886458,4.87089512,2661.1,2661.0,0.37581]
[1729266886663,4.68289083,2661.1,2661.0,0.37581]
[1729266886860,4.87088656,2661.1,2661.0,0.37581]
[1729266887060,0.37583,2661.0,2660.9,0.37581]
[1729266887466,0.37583,2661.0,2660.7,4.55648347]
[1729266887467,1.47509083,2661.0,2660.7,1.62648347]
[1729266887665,0.37585,2660.8,2660.7,0.37584]
[1729266887966,1.66309999,2660.9,2660.8,0.37584]
[1729266887967,1.85094083,2660.9,2660.8,0.37584]
[1729266888171,0.18802003,2660.9,2660.5,4.2694]
[1729266888463,0.37587,2660.7,2660.6,0.37585]
[1729266888866,1.47497931,2660.8,2660.5,4.59098665]
[1729266889064,0.37585,2660.8,2660.7,0.37585]
[1729266889376,1.47497931,2660.8,2660.5,0.32158665]
[1729266889669,0.37586,2660.7,2660.6,0.37587]
[1729266889860,2.03897404,2660.7,2660.6,0.37587]
[1729266890065,1.66311404,2660.7,2660.6,0.37587]
[1729266890364,3.2078,2660.8,2660.7,0.37585]
[1729266891465,2.862291,2661.0,2660.7,0.37585]
[1729266891466,1.475091,2661.0,2660.9,0.37583]
[1729266891660,5.058701,2661.1,2661.0,0.37581]
[1729266891859,3.77161191,2661.1,2661.0,0.37581]
[1729266892068,3.39580191,2661.1,2661.0,0.37581]
[1729266892264,5.24652453,2661.1,2661.0,0.37581]
[1729266892465,3.77160191,2661.1,2661.0,0.37581]
[1729266892765,5.24668908,2661.1,2661.0,0.37581]
[1729266892981,3.77160191,2661.1,2661.0,0.37581]
[1729266893171,5.08350191,2661.1,2661.0,0.37581]
[1729266893975,4.70770191,2661.1,2661.0,0.37581]
[1729266894571,2.97517498,2661.1,2661.0,0.37581]
[1729266894875,2.97513931,2661.1,2661.0,0.37581]
[1729266895076,0.56380191,2661.1,2661.0,0.37581]
[1729266895274,2.03902958,2661.1,2661.0,0.37581]
[1729266895477,0.37581,2661.0,2660.9,0.37581]
[1729266895779,0.56381312,2661.0,2660.9,0.37581]
[1729266896370,1.47527197,2661.0,2660.8,1.61017725]
[1729266896561,1.47527197,2661.0,2660.9,0.37583]
[1729266896764,1.47527197,2661.0,2660.8,1.61017725]
[1729266896973,1.47527197,2661.0,2660.9,0.37583]
[1729266897279,0.3758,2661.1,2661.0,0.37581]
[1729266897280,0.37581,2661.1,2661.0,0.37581]
[1729266897477,0.18800473,2661.1,2661.0,0.37581]
[1729266897673,1.66322567,2661.1,2660.8,2.54977725]
[1729266897975,1.66322567,2661.1,2661.0,0.37581]
[1729266898375,1.47522768,2661.1,2661.0,0.37581]
[1729266899475,1.66322859,2661.1,2661.0,0.37581]
[1729266899983,1.66322914,2661.1,2661.0,0.37581]
[1729266900778,1.47522768,2661.1,2661.0,0.37581]
[1729266901174,1.66322382,2661.1,2661.0,0.37581]
[1729266901480,1.47522768,2661.1,2661.0,0.37581]
[1729266901675,1.47522768,2661.1,2660.9,5.5058]
[1729266901676,1.47522768,2661.2,2661.1,0.3758]
[1729266901875,1.85100768,2661.2,2661.1,0.3758]
[1729266902074,0.56377797,2661.2,2661.1,0.3758]
[1729266902275,6.2558918,2661.2,2661.1,0.3758]
[1729266902486,7.6031918,2661.2,2661.1,0.3758]
[1729266904083,7.6031918,2661.2,2660.8,2.54977725]
[1729266904084,0.37582,2661.1,2661.0,0.3758]
[1729266904278,1.91351797,2661.1,2661.0,0.3758]
[1729266904484,1.53769797,2661.1,2661.0,0.3758]
[1729266904783,3.01340653,2661.1,2661.0,0.3758]
[1729266905186,0.3758,2661.1,2661.0,0.3758]
[1729266905380,1.47570856,2661.1,2661.0,0.3758]
[1729266905576,1.47570856,2661.2,2661.1,0.3758]
[1729266906571,1.47570856,2661.2,2661.1,3.3058]
[1729266908279,1.47570856,2661.2,2661.1,3.63434656]
[1729266909085,1.85148856,2661.2,2661.1,0.70434656]
[1729266909387,2.03948179,2661.2,2661.1,0.70434656]
[1729266909683,0.37581,2661.1,2661.0,0.3758]
[1729266909979,1.85194341,2661.1,2661.0,0.3758]
[1729266910182,1.6641384,2661.1,2660.6,1.3965]
[1729266910383,1.6641384,2661.1,2660.6,0.37585]
[1729266910384,0.37586,2660.7,2660.6,0.37585]
[1729266910574,1.85201436,2660.7,2660.6,0.37585]
[1729266910889,44.23964703,2660.7,2660.6,0.37585]
[1729266911088,44.23964703,2660.7,2660.3,0.37591]
[1729266911089,45.2617965,2660.7,2660.3,0.37591]
[1729266911383,1.85223811,2660.4,2660.3,0.3759]
[1729266911586,1.66436946,2660.4,2660.3,3.3059]
[1729266911884,1.47632811,2660.4,2660.3,3.3059]
[1729266912074,1.47632811,2660.5,2660.4,0.3759]
[1729266912279,1.47632811,2660.6,2660.5,0.37588]
[1729266912986,1.47632811,2660.6,2660.5,3.30588]
[1729266913188,1.47632811,2660.8,2660.7,0.37585]
[1729266913386,1.09152812,2661.0,2660.7,2.93]
[1729266913582,1.93451383,2661.3,2660.8,5.52141]
[1729266913786,3.33411383,2661.4,2661.3,0.37577]
[1729266913985,3.5221009,2661.4,2661.3,0.37577]
[1729266914188,3.8978609,2661.4,2661.3,0.37577]
[1729266914486,1.58758707,2661.4,2661.3,0.37577]
[1729266914689,0.18798707,2661.4,2661.3,0.37577]
[1729266914885,2.49824018,2661.5,2661.4,0.37576]
[1729266915183,2.1224934,2661.5,2661.4,0.37576]
[1729266915591,2.4982334,2661.5,2661.4,0.37576]
[1729266915891,2.1224934,2661.5,2661.4,0.37576]
[1729266916092,0.18797957,2661.5,2661.4,3.30576]
[1729266916480,3.2078,2661.7,2661.6,0.37573]
[1729266916685,3.2078,2661.7,2661.6,3.30573]
[1729266916984,0.37573,2661.6,2661.5,1.71964]
[1729266917588,3.2078,2661.7,2661.5,1.3439]
[1729266917785,0.37574,2661.5,2661.4,3.30574]
[1729266918495,0.3758,2661.2,2661.1,0.37578]
[1729266919382,0.3758,2661.1,2661.0,3.30581]
[1729266919589,3.32351383,2661.3,2660.9,0.69573486]
[1729266919890,0.37581,2661.1,2661.0,0.37579]
[1729266920692,1.389,2661.3,2661.0,2.93]
[1729266920893,0.3758,2661.1,2661.0,3.3058]
[1729266921195,0.37581,2661.0,2660.9,0.37582]
[1729266921494,0.37582,2661.0,2660.9,0.37581]
[1729266921693,0.37582,2661.1,2661.0,0.3758]
[1729266922392,3.32351383,2661.3,2661.1,0.37578]
[1729266922592,0.56378181,2661.2,2661.1,0.37578]
[1729266922798,0.56378181,2661.2,2661.0,2.93]
[1729266922799,0.18798337,2661.2,2661.0,2.93]
[1729266923003,0.18798337,2661.2,2661.1,0.3758]
[1729266923499,0.56376337,2661.2,2661.1,0.3758]
[1729266923796,0.18798337,2661.2,2661.1,0.3758]
[1729266924601,1.93451383,2661.3,2661.2,0.37578]
[1729266924794,1.93451383,2661.3,2661.2,3.30578]
[1729266926897,2.41814229,2661.5,2661.2,2.93]
[1729266926898,4.35265612,2661.5,2661.2,2.93]
[1729266927199,4.72840612,2661.5,2661.4,0.37576]
[1729266927797,0.37577,2661.4,2661.3,0.37576]
[1729266928111,0.37577,2661.4,2660.9,0.37581]
[1729266928112,0.37582,2661.0,2660.9,0.37581]
[1729266929100,1.3628,2661.2,2660.8,1.3608]
[1729266929303,1.73859,2661.2,2661.1,0.3758]
[1729266930906,3.2078,2661.7,2661.0,3.86953]
[1729266931101,0.37574,2661.6,2661.5,3.30573]
[1729266932003,4.5706,2661.7,2661.6,0.37573]
[1729266932313,3.2078,2661.7,2661.6,0.37573]
[1729266932704,3.58351,2661.7,2661.6,0.37573]
[1729266933105,5.73966125,2661.7,2661.6,0.37573]
[1729266934107,5.36395125,2661.7,2661.6,0.37573]
[1729266934408,3.44433297,2662.3,2661.8,0.93925]
[1729266934616,3.44433297,2662.3,2662.2,3.30564]
[1729266934914,3.93638053,2662.5,2662.4,0.37561]
[1729266936009,3.93638053,2662.5,2662.4,3.30561]
[1729266937307,3.93638053,2662.5,2662.4,7.06161]
[1729266937605,3.55483805,2662.5,2662.4,7.38801754]
[1729266937804,4.35265612,2662.6,2662.5,0.3756]
[1729266938009,4.35265612,2662.6,2662.5,4.1316]
[1729266938215,3.2078,2662.9,2662.5,5.0258]
[1729266938506,3.2078,2662.9,2662.8,0.37556]
[1729266938912,0.37557,2662.8,2662.7,0.37557]
[1729266939104,0.37557,2662.8,2662.5,2.93]
[1729266939105,0.37558,2662.7,2662.6,0.37558]
[1729266939300,1.387,2662.8,2662.4,0.37561]
[1729266939301,0.37561,2662.5,2662.4,0.37561]
[1729266939501,1.387,2662.8,2662.7,0.37557]
[1729266939502,2.7328,2662.8,2662.7,0.37557]
[1729266939700,3.10836,2662.8,2662.7,0.37557]
[1729266940308,0.37557,2662.7,2662.6,3.30558]
[1729266940614,3.10837,2662.8,2662.7,0.37557]
[1729266941411,3.2078,2662.9,2662.8,0.37556]
[1729266941604,3.58334,2662.9,2662.8,2.93]
[1729266941803,3.2078,2662.9,2662.4,2.93]
[1729266941999,3.2078,2662.9,2662.5,0.37559]
[1729266942000,0.37559,2662.6,2662.5,0.37559]
[1729266942714,0.37559,2662.6,2662.4,2.93]
[1729266942715,0.3756,2662.5,2662.4,3.3056]
[1729266943012,1.27,2662.7,2662.4,3.3056]
[1729266943013,1.27,2662.7,2662.4,2.93]
[1729266943211,0.3756,2662.5,2662.4,3.30561]
[1729266945208,0.37559,2662.6,2662.5,0.37559]
[1729266947409,1.27,2662.7,2662.4,2.93]
[1729266947815,0.3756,2662.5,2662.4,0.37561]
[1729266948517,0.3756,2662.5,2662.3,3.03440692]
[1729266948518,0.37561,2662.4,2662.3,0.37562]
[1729266948720,0.37565,2662.2,2662.1,0.37564]
[1729266948919,4.14677,2662.6,2661.9,6.1378]
[1729266949109,0.37564,2662.3,2662.2,0.37563]
[1729266950626,3.2078,2662.3,2661.9,3.25955128]
[1729266950924,0.37567,2662.1,2662.0,0.37566]
[1729266951417,2.96116,2662.2,2662.1,0.37566]
[1729266951824,2.96116,2662.2,2661.6,4.8198]
[1729266951825,6.3415,2662.2,2661.6,3.2078]
[1729266952014,8.06994,2662.2,2661.6,3.53226188]
[1729266952220,0.3757,2661.9,2661.8,0.37569]
[1729266952424,8.06992,2662.2,2661.6,3.53226188]
[1729266952723,8.06992,2662.2,2661.4,0.69590617]
[1729266952724,0.37574,2661.5,2661.4,0.69590617]
[1729266952922,0.37573,2661.7,2661.6,0.37572]
[1729266953114,1.2895,2661.7,2661.6,0.37572]
[1729266953315,3.5835,2661.9,2661.8,0.3757]
[1729266953911,3.2078,2661.9,2661.3,3.52769521]
[1729266954222,3.2078,2661.9,2660.8,0.9396]
[1729266954223,3.2078,2661.4,2660.8,0.9396]
[1729266954425,0.37579,2661.2,2661.1,0.37579]
[1729266954820,0.37582,2661.0,2660.9,0.37582]
[1729266955415,4.4973,2661.3,2660.7,6.46852475]
[1729266955416,7.4273,2661.3,2660.7,3.2078]
[1729266955621,3.8695,2661.1,2660.4,1.3331]
[1729266955823,0.37587,2660.7,2660.6,0.37586]
[1729266956334,0.37587,2660.6,2660.5,0.37587]
[1729266956626,3.2078,2660.9,2660.4,1.66552302]
[1729266956831,2.29955,2661.0,2660.5,0.37588]
[1729266956832,0.37587,2660.6,2660.5,0.37588]
[1729266957126,0.37587,2660.6,2660.4,1.66552302]
[1729266957127,0.37586,2660.7,2660.6,0.37587]
[1729266957326,0.37586,2660.7,2660.5,0.37587]
[1729266957729,0.37586,2660.7,2660.6,0.37587]
[1729266958623,3.2078,2660.9,2660.4,1.66552302]
[1729266958928,6.1378,2660.6,2659.8,0.32142709]
[1729266959119,2.93,2660.0,2659.4,0.94008]
[1729266959424,0.376,2659.7,2659.6,0.376]
[1729266959830,1.2938,2659.9,2659.6,0.376]
[1729266960020,3.2078,2659.8,2659.3,3.08942844]
[1729266960224,2.93,2659.8,2659.3,3.08942844]
[1729266960423,3.2078,2659.6,2659.3,0.37605]
[1729266960934,0.37606,2659.3,2659.1,0.37607]
[1729266961135,0.37606,2659.3,2658.9,4.581]
[1729266961136,3.2078,2659.5,2658.9,1.3732]
[1729266961336,0.37606,2659.3,2659.1,0.37608]
[1729266961529,0.37606,2659.3,2658.9,1.70573014]
[1729266961728,3.2078,2659.5,2658.9,1.70573014]
[1729266962139,0.37607,2659.2,2659.0,0.37609]
[1729266962837,6.8178,2659.2,2658.5,1.3597]
[1729266963041,0.37612,2658.9,2658.5,1.3597]
[1729266963232,1.373,2659.1,2659.0,0.3761]
[1729266963431,1.398,2659.4,2658.6,3.61]
[1729266963640,3.2078,2659.5,2658.9,3.2078]
[1729266963835,1.373,2659.7,2659.6,0.37601]
[1729266964233,3.2078,2659.9,2659.8,0.37598]
[1729266964636,0.37589,2660.5,2659.7,1.316]